Cogmind - Beta 10.2 @@@ ROGUE MODE // 2021.11.22 @ 15:14:45 Player: Geraldon Result: Destroyed by G-47 Trooper with Particle Gun Performance ------------- Evolutions (0) 0 Regions Visited (4) 800 Robots Destroyed (37) 185 Value Destroyed (693) 693 Prototype IDs (38) 760 Alien Tech Used (0) 0 Bonus (227) 227 TOTAL SCORE: 2665 Bonus ------- Aligned with FarCom 300 Friendly Fire -73 Cogmind --------- Core Integrity 0/250 Matter 232/300 Energy 80/650 System Corruption 8% Temperature Cool (85) Movement Treading (200) Ox2 Location -9/Mines Parts ------- > --- POWER (1) -------- Ion Engine > --- PROPULSION (2) --- Light Treads > --- UTILITY (2) ------ High-capacity Storage Unit High-capacity Battery > --- WEAPON (2) ------- Latent Energy Streamer > --- INVENTORY (12) --- Light Treads Large Storage Unit Large Storage Unit Hacking Suite Light Assault Rifle Light Assault Rifle Grenade Launcher Datajack Peak State ------------ > --- POWER ------------ Ion Engine > --- PROPULSION ------- Light Treads Light Treads > --- UTILITY ---------- Large Storage Unit High-capacity Battery > --- WEAPON ----------- Latent Energy Streamer Datajack > --- INVENTORY -------- Light Treads Large Storage Unit High-capacity Storage Unit Hacking Suite Assault Rifle Light Assault Rifle Light Assault Rifle Grenade Launcher [Rating: 17] Favorites ----------- Power Ion Engine Engine Ion Engine Propulsion Light Treads Treads Light Treads Utility High-capacity Storage Unit Storage High-capacity Storage Unit Weapon Assault Rifle Energy Gun EM Pulse Gun Energy Cannon Latent Energy Streamer Ballistic Gun Assault Rifle Special Melee Weapon Datajack Build | -11 -10 -10 -10 -9 ------- Run | Scr Mat Min Exi Min Slots Evolved . | . . . . . Power . | . . . . . Propulsion . | . . . . . Utility . | . . . . . Weapon . | . . . . . Parts Attached 26 | 6 6 7 4 3 Power 3 | 1 . 2 . . Engine 3 | 1 . 2 . . Core . | . . . . . Reactor . | . . . . . Propulsion 5 | 2 1 2 . . Treads 5 | 2 1 2 . . Leg . | . . . . . Wheel . | . . . . . Hover . | . . . . . Flight . | . . . . . Utility 6 | 1 2 1 . 2 Device . | . . . . . Storage 6 | 1 2 1 . 2 Processor . | . . . . . Hackware . | . . . . . Protection . | . . . . . Artifact . | . . . . . Weapon 12 | 2 3 2 4 1 Energy Gun 1 | . 1 . . . Energy Cannon 1 | . . . 1 . Ballistic Gun 8 | 2 2 2 1 1 Ballistic Cannon . | . . . . . Launcher . | . . . . . Special Weapon . | . . . . . Impact Weapon . | . . . . . Slashing Weapon . | . . . . . Piercing Weapon . | . . . . . Special Melee Weapon 2 | . . . 2 . Unidentified Prototypes . | . . . . . Parts Lost 10 | . 2 6 . 2 Power 2 | . . 2 . . Propulsion 3 | . . 2 . 1 Utility . | . . . . . Weapon 5 | . 2 2 . 1 Highest Loss Streak 4 | . 1 4 . 2 Average Slot Usage (%) 86 | . 85 85 88 100 Engine 13 | . 14 13 14 14 Treads 27 | . 28 27 28 28 Storage 18 | . 16 15 24 28 Energy Gun 1 | . 2 . . . Energy Cannon 1 | . . . 6 14 Ballistic Gun 20 | . 22 27 2 14 Special Melee Weapon 2 | . . . 11 . Naked Turns . | . . . . . Heaviest Build 65 | 12 40 56 65 53 Greatest Support 40 | 40 40 40 40 40 Greatest Overweight (x) 1 | . . 1 1 1 Average Overweight (x) . | . . . . 1 Largest Inventory Capacity 18 | 6 16 18 18 12 Average Capacity 11 | 5 8 12 15 11 Most Carried 11 | 4 9 11 9 8 Average Carried 6 | 1 5 8 7 8 Final Capacity 18 | 6 12 18 10 12 Final Carried 9 | 1 8 6 9 8 Class Distribution -------------------- 83% | Mutant 16% | Scavenger-Mutant Dominant Class ---------------- Mutant | -10/Materials Scavenger-Mutant | -10/Mines Mutant | -10/Exiles Mutant | -9/Mines Resources | -11 -10 -10 -10 -9 ----------- Run | Scr Mat Min Exi Min Matter Collected 744 | 268 248 228 . . Remotely . | . . . . . Salvage Created 1283 | 88 816 357 . 22 Parts 73 | 2 48 20 . 3 Haulers Intercepted 2 | . 2 . . . Recyclers Shooed 2 | . 2 . . . Parts Field Recycled . | . . . . . Retrieved Matter . | . . . . . Parts Self-Destructed . | . . . . . Prevented . | . . . . . Kills | -11 -10 -10 -10 -9 ------- Run | Scr Mat Min Exi Min Combat Hostiles Destroyed 26 | . 15 11 . . Guns 25 | . 14 11 . . AOE 1 | . 1 . . . Classes Destroyed 8 | 1 6 . . 1 Worker 1 | . 1 . . . Builder 1 | . 1 . . . Hauler 2 | . 2 . . . Recycler 4 | 1 3 . . . Operator 2 | . 2 . . . Swarmer 14 | . 9 5 . . Grunt 12 | . 6 6 . . Zionite 1 | . . . . 1 Best Kill Streak 5 | 1 5 3 . . Combat Bots Only 3 | . 3 3 . . Max Kills in Single Turn 3 | 1 3 1 . 1 Gunslinging 1 | . 1 . . . Exploded 1 | . 1 . . . Melee . | . . . . . Uniques/NPCs Destroyed . | . . . . . Combat | -11 -10 -10 -10 -9 -------- Run | Scr Mat Min Exi Min Damage Taken 1607 | . 770 689 . 148 Core 251 | . 152 64 . 35 Absorbed by Shields . | . . . . . Core Remaining (%) 100 | 100 . . . . Volleys Fired 110 | 2 57 47 . 4 Largest 2 | 2 2 2 . 2 Hottest 80 | 40 60 40 . 80 Shots Fired 211 | 4 112 91 . 4 Gun 207 | 4 112 91 . . Cannon 4 | . . . . 4 Launcher . | . . . . . Special . | . . . . . Kinetic 189 | 4 94 91 . . Thermal . | . . . . . Explosive . | . . . . . Electromagnetic 22 | . 18 . . 4 Robot Hit Streak 17 | 2 11 17 . 2 Robot Miss Streak 5 | 1 5 3 . 1 Penetration Max . | . . . . . Secondary Targets 7 | . 5 2 . . Max Gunslinging Chain 1 | . 1 1 . . Shots Hit Robots 138 | 2 64 66 4 2 Core Hits 70 | 2 38 24 . 6 Critical Hits 2 | . . 2 . . Critical Kills . | . . . . . Critical Parts Destroyed 2 | . . 2 . . Melee Attacks 4 | . . . 4 . Impact . | . . . . . Slashing . | . . . . . Piercing . | . . . . . Sneak Attacks 4 | . . . 4 . Combat Hostiles . | . . . . . Follow-up Attacks . | . . . . . Damage Inflicted 1874 | 20 1033 713 . 108 Guns 1406 | 20 685 701 . . Cannons 15 | . . . . 15 Explosions 420 | . 327 . . 93 Melee . | . . . . . Ramming 33 | . 21 12 . . Kinetic 1280 | 20 559 701 . . Thermal 124 | . 124 . . . Explosive . | . . . . . Electromagnetic 437 | . 329 . . 108 Impact . | . . . . . Slashing . | . . . . . Piercing . | . . . . . Highest Corruption 7 | . 1 1 1 7 Average Corruption 1 | . 1 1 1 1 Corruption Purged . | . . . . . Effects 16 | . 4 8 2 2 Message Errors 4 | . 1 2 . 1 Matter Fused 1 | . . . . 1 Energy Discharges 4 | . . 2 2 . Data Loss (minor) 3 | . 1 2 . . Targeting Errors 2 | . 2 . . . Weapon Failures 2 | . . 2 . . Overload Shots . | . . . . . Overflow Damage 39 | . 19 . . 20 Projectiles . | . . . . . Explosions 39 | . 19 . . 20 Melee . | . . . . . Knockbacks . | . . . . . Impact . | . . . . . Kinetic . | . . . . . Secondary . | . . . . . Self-Inflicted Damage 200 | . 74 . . 126 Shots 4 | . 2 . . 2 Rammed 7 | . 5 2 . . Targets Rammed 7 | . 5 2 . . Kicked . | . . . . . Crushed . | . . . . . Highest Temperature 78 | . 78 18 . 76 Average Temperature 26 | . 34 7 . 42 Received Heat Transfer 414 | . 168 231 . 15 Siege Activations . | . . . . . Robots Corrupted . | . . . . . Combat Hostiles . | . . . . . Parts Fried 1 | . 1 . . . Impact Corruptions . | . . . . . Robots Melted . | . . . . . Combat Hostiles . | . . . . . Parts Melted . | . . . . . Heat Transferred 100 | . 100 . . . Parts Sabotaged . | . . . . . Parts Stolen . | . . . . . Parts Stripped . | . . . . . Power Chain Reactions 3 | . 2 . . 1 Missiles Intercepted . | . . . . . Latent Energy Used 189 | . . . . 189 LE Corruption 6 | . . . . 6 Alert | -11 -10 -10 -10 -9 ------- Run | Scr Mat Min Exi Min Peak Influence 302 | 5 302 239 . 15 Initial 69 | . 3 69 . . Average 131 | 2 155 114 . 1 Maximum Alert Level 1 | . 1 1 . . Low Security (%) 87 | 100 83 92 . 100 Level 1 12 | . 16 7 . . Level 2 . | . . . . . Level 3 . | . . . . . Level 4 . | . . . . . Level 5 . | . . . . . High Security . | . . . . . Max Security . | . . . . . Squads Dispatched 3 | . 3 . . . Investigation 1 | . 1 . . . Extermination . | . . . . . Reinforcement 2 | . 2 . . . Assault . | . . . . . Garrison . | . . . . . Intercept . | . . . . . Construction Impeded . | . . . . . Haulers Reinforced . | . . . . . Stealth | -11 -10 -10 -10 -9 --------- Run | Scr Mat Min Exi Min Distress Signals 2 | . 2 . . . Communications Jammed . | . . . . . Distress Signals . | . . . . . Times Spotted 39 | . 25 12 . 2 Peak Tracking Total 5 | . 5 3 . 2 Tactical Retreats . | . . . . . Traps | -11 -10 -10 -10 -9 ------- Run | Scr Mat Min Exi Min Traps Triggered 1 | . 1 . . . Indirectly . | . . . . . Trap Hack Attempts . | . . . . . Triggered . | . . . . . Disarmed . | . . . . . Reprogrammed . | . . . . . Reused . | . . . . . Traps Extracted . | . . . . . Installed . | . . . . . Triggered . | . . . . . Exploded 1 | . . . 1 . Machines | -11 -10 -10 -10 -9 ---------- Run | Scr Mat Min Exi Min Machines Disabled 4 | . 3 . . 1 Max in Single Turn 3 | . 3 . . 1 Machines Sabotaged . | . . . . . Garrisons Compromised . | . . . . . Overloaded Fab Kills . | . . . . . Fab Network Shutdowns . | . . . . . Hacking | -11 -10 -10 -10 -9 --------- Run | Scr Mat Min Exi Min Machines Accessed 8 | . 5 1 2 . Terminals 5 | . 4 1 . . Fabricators . | . . . . . Repair Stations 1 | . 1 . . . Recycling Units . | . . . . . Scanalyzers . | . . . . . Garrison Access . | . . . . . Total Hacks 42 | . 17 1 24 . Successful 36 | . 11 1 24 . Failed 6 | . 6 . . . Catastrophic . | . . . . . Database Lockouts . | . . . . . Manual 10 | . 9 . 1 . Terminals 13 | . 12 1 . . Fabricators . | . . . . . Repair Stations 5 | . 5 . . . Recycling Units . | . . . . . Scanalyzers . | . . . . . Garrison Access . | . . . . . Terminal Hacks 30 | . 5 1 24 . Record 23 | . . . 23 . Part Schematic 1 | . 1 . . . Robot Schematic 2 | . 2 . . . Prototype ID Bank 1 | . 1 . . . Investigation Status 1 | . . 1 . . Zone Layout 1 | . 1 . . . EX-Prototype ID Bank 1 | . . . 1 . Fabricator Hacks . | . . . . . Repair Station Hacks 4 | . 4 . . . Scan Component 2 | . 2 . . . Repair 2 | . 2 . . . Recycling Unit Hacks . | . . . . . Scanalyzer . | . . . . . Garrison Access Hacks . | . . . . . Unauthorized Hacks 2 | . 2 . . . Terminals 2 | . 2 . . . Botnet 1 | . 1 . . . Operators 1 | . 1 . . . Fabricators . | . . . . . Repair Stations . | . . . . . Recycling Units . | . . . . . Scanalyzers . | . . . . . Garrison Access . | . . . . . Data Cores Recovered . | . . . . . Used . | . . . . . Hacking Detections 4 | . 4 . . . Full Trace Events . | . . . . . Feedback Events . | . . . . . Feedback Blocked . | . . . . . Robot Schematics Acquired 2 | . 2 . . . Robots Built . | . . . . . Matter . | . . . . . Time . | . . . . . Total Robot Build Rating . | . . . . . Part Schematics Acquired 1 | . 1 . . . Parts Built . | . . . . . Matter . | . . . . . Time . | . . . . . Total Part Build Rating . | . . . . . Parts Repaired 2 | . 2 . . . Time 52 | . 52 . . . Parts Recycled . | . . . . . Recycled Matter . | . . . . . Retrieved Matter . | . . . . . Retrieved Components . | . . . . . Parts Scanalyzed . | . . . . . Part Schematics Acquired . | . . . . . Parts Damaged . | . . . . . Bothacking | -11 -10 -10 -10 -9 ------------ Run | Scr Mat Min Exi Min Used RIF Installer . | . . . . . Robots Hacked 4 | . . . 4 . Non-combat 2 | . . . 2 . Combat 2 | . . . 2 . Robot Hacks Applied 4 | . . . 4 . parse_system 4 | . . . 4 . Relay Couplers Released . | . . . . . Robots Rewired . | . . . . . Allies Hacked . | . . . . . Hacks Repelled . | . . . . . Allies | -11 -10 -10 -10 -9 -------- Run | Scr Mat Min Exi Min Total Allies . | . . . . . Largest Group . | . . . . . Highest-Rated Group . | . . . . . Highest-Rated Ally . | . . . . . Total Orders . | . . . . . Ally Attacks . | . . . . . Total Damage . | . . . . . Kills . | . . . . . Allies Corrupted . | . . . . . Allies Melted . | . . . . . Intel | -11 -10 -10 -10 -9 ------- Run | Scr Mat Min Exi Min Robot Analysis Total . | . . . . . Derelict Logs Recovered 2 | . . 2 . . Drone Launches . | . . . . . Drone Recoveries . | . . . . . Exploration | -11 -10 -10 -10 -9 ------------- Run | Scr Mat Min Exi Min Turns Passed 2316 | 74 1120 638 442 42 Spaces Moved 1154 | 43 545 304 245 17 Core 10 | 10 . . . . Treads 1144 | 33 545 304 245 17 Legs . | . . . . . Wheels . | . . . . . Hover . | . . . . . Flight . | . . . . . Fastest Speed 50 | 50 160 160 160 180 Average Speed 162 | 134 160 162 174 180 Slowest Speed 180 | 160 160 180 180 180 Overloaded Moves . | . . . . . Propulsion Burnouts . | . . . . . Robots Hopped . | . . . . . Cave-ins Triggered . | . . . . . Exploration Rate (%) 44 | 4 83 63 63 7 Regions Visited 4 Branch Regions 3 Pre-discovered Areas 1 | . . . 1 . Known Exits Taken . | . . . . . Unknown Exits Taken 4 | 1 1 1 1 . Scrap Searched . | . . . . . Spaces Dug . | . . . . . Terrain Destroyed 35 | . 7 . . 28 Melee . | . . . . . Projectile . | . . . . . AOE 35 | . 7 . . 28 Terrain Rammed . | . . . . . Walls Destroyed . | . . . . . Machines Disabled . | . . . . . Actions | -11 -10 -10 -10 -9 --------- Run | Scr Mat Min Exi Min Total 1387 | 55 687 364 257 24 Wait 59 | . 59 . . . Move 1150 | 42 544 303 244 17 Hop . | . . . . . Pick Up 25 | 5 13 5 2 . Fast Attach 2 | 2 . . . . Attach 18 | 4 4 7 2 1 Detach 3 | . . . 3 . Swap 6 | . 2 . 2 2 Drop 3 | . 3 . . . Fire 110 | 2 57 47 . 4 Melee 4 | . . . 4 . Ram . | . . . . . Kick . | . . . . . Crush 7 | . 5 2 . . Escape Stasis . | . . . . . Rewire . | . . . . . Trap . | . . . . . Miscellaneous . | . . . . . Route ------- -11/Scrapyard -10/Materials (discovered 4 exits: [*Mat x3] / *Min) -10/Mines (discovered 3 exits: [*Mat x2] / *Exi) -10/Exiles -9/Mines History --------- Turn | Location | Event 20 | -11/Scrapyard | Discovered new exit (range 16) 75 | -11/Scrapyard | Entered Materials 234 | -10/Materials | Discovered new exit (range 3) 304 | -10/Materials | Build established: Mutant 503 | -10/Materials | Discovered new exit (range 7) 711 | -10/Materials | Core integrity fell below 50% 912 | -10/Materials | Repaired Assault Rifle 939 | -10/Materials | Repaired Lgt. Treads 972 | -10/Materials | Discovered new exit (range 8) 1088 | -10/Materials | Discovered new exit (range 8) 1195 | -10/Materials | Entered Mines 1277 | -10/Mines | Discovered new exit (range 10) 1478 | -10/Mines | Lost 4 parts (1p2n1w) 1523 | -10/Mines | Learned Materials security intel 1548 | -10/Mines | Core integrity fell below 20% 1577 | -10/Mines | Learned Materials stockpile data 1601 | -10/Mines | Discovered new exit (range 10) 1774 | -10/Mines | Build established: Scavenger-Mutant 1826 | -10/Mines | Deemed a non-threat by the Exiles lab entrance 1826 | -10/Mines | Discovered new exit (range 5) 1833 | -10/Mines | Entered Exiles 1880 | -10/Exiles | Met 8R-AWN 1913 | -10/Exiles | Met EX-HEX 1965 | -10/Exiles | Met EX-BIN 1987 | -10/Exiles | Aligned with FarCom system 1989 | -10/Exiles | Given EX-Vault access code 2030 | -10/Exiles | Opened EX-Vault 2050 | -10/Exiles | Found Latent Energy Streamer 2090 | -10/Exiles | Warned to stay clear of 0b10 Research branches 2107 | -10/Exiles | Exiles lab attacked by MAIN.C 2143 | -10/Exiles | Build established: Mutant 2160 | -10/Exiles | Learned location of Zion (-6) 2262 | -10/Exiles | Discovered new exit (range 10) 2275 | -10/Exiles | Left Exiles lab with Latent Energy Streamer 2275 | -10/Exiles | Entered Mines 2317 | -9/Mines | Destroyed by G-47 Trooper with Particle Gun Last Messages --------------- 02234_ Acquired Hcp. Battery. 02262_ EXIT=FOUND LOCATION=UNKNOWN GOAL=ESCAPE 02275_ Receiving FarCom transmissions... 02276_ W1-DM0: "That was close. Too bad in all the rush we got split up from the others." 02276_ K-01 Serf collects debris. 02278_ K-01 Serf cleans the Laser Drill. 02284_ ,O9#QNNE5AJ7GV2OEODDI2NGH7EMU5D2F,G 02304_ W1-DM0: "Oh no, it's like what happened to the Exiles when they were wandering homeless, only there's no Warlord to save us!" 02310_ Lgt. Treads destroyed. 02310_ Destroyed Lgt. Treads. 02310_ Assault Rifle destroyed. 02310_ Destroyed Assault Rifle. 02310_ W1-DM0 destroyed. 02310_ Chain reaction triggered in Mak. Power Source. 02312_ System corrupted: Matter fused (-8). 02313_ Laser Drill disabled. Map ----- +----------------------------------------------------+ | | | | | | | | | | | | | | | | | | | | | | | | | | | | | | | | | ?????????????????????????????? | | ?????????????????????????????? | | ?????????????????????????????? | | ?????????????????????????????? | | ?????????????????###?????????? | | ????????????s?s?s #?????????? | | ?????????????????# #??######?? | | ??????????????s??# ## # ##? | | ??????????#??????# ### ; #? | | ??????????# ?????# =% @; #? | | ??????????# ?????# ##;; ; #? | | ???????#### ####?# #### ; #? | | ???????# #?# #??# #? | | ?????### """ ### #??## g###? | | ???? """ #??? g ??? | | ??????## """ ## ##??? ??? | | ???????# ## #??? " ??? | | ???????# ## ??? """ ??? | | ???????########## ?? ??? | | ???????????????? ### """ ??? | | ???????????????? #??# """ ??? | | ????????????????" #??#???? ??? | | ???????????????"" #??????? ??? | | ???????????????"" ????????#??? | | ???????????????? ???????????? | | ???????????????? ???????????? | | ????????????????? ???????????? | | ?????????????????#???????????? | | ?????????????????????????????? | | ?????????????????????????????? | | ?????????????????????????????? | | ?????????????????????????????? | | ?????????????????????????????? | | ?????????????????????????????? | +----------------------------------------------------+ Best States ------------- Heat Dissipation 25 Energy Generation 10 Energy Capacity 650 Matter Stores 300 Matter Capacity 300 Sight Range 16 Terrain Scan Density 10 Evasion (%) 50 Recoil Reduction 2 Item Schematics ----------------- Structural Scanner | -10/Materials | Hacked Robot Schematics ------------------ O-16 Technician | -10/Materials | Hacked S-10 Pest | -10/Materials | Hacked Fabricated ------------ Nothing Alien Tech Used ----------------- None Achievements -------------- None Challenges ------------ None Game ------ Seed GammaArmageddonTreads Manual? 0 Play Time 00:11:50 Cumulative 641.7 hours Start 2021.11.22 @ 15:03:30 End 2021.11.22 @ 15:14:45 Sessions 1 Manual Loads 0 Difficulty Rogue Special Mode None Game No. 646 Rogue 605 Adventurer 41 Explorer 0 Win Type - Total 31 Types 23/0/6/1/0/0/0/1/0 Lore% 91 Gallery% 93 Achievement% 79 Wizard Run 0 Options --------- ASCII 0 Keyboard 0 Movement Mouse Keybinds 0 Fullscreen 1 Font 18/Terminus Map View 76x50 Tactical HUD 1 Map Filters NONE Filters NONE Steam 1 RUN: 7421be60-27d6-454e-be97-82fb1a5dd1a4